bitfinex/quotes_ETHUSD_20241124
["timestamp","ask_amount","ask_price","bid_price","bid_amount"]
[1732467927469,3.02069,3310.5,3309.9,1.95121792]
[1732467927775,3.02085,3310.4,3309.9,1.04485792]
[1732467927950,3.02076,3310.5,3309.9,0.6512]
[1732467928156,3.02058,3310.7,3310.0,0.90632]
[1732467928465,3.02065,3310.6,3310.1,0.90631]
[1732467929388,3.021,3310.2,3309.9,0.6512]
[1732467929615,3.021,3310.2,3309.6,0.90644]
[1732467929769,3.02106,3310.1,3309.5,1.55766]
[1732467929972,3.02106,3310.1,3309.5,1.713426]
[1732467930275,3.02102,3310.2,3309.6,0.90644]
[1732467930491,3.02102,3310.2,3309.5,1.713426]
[1732467930702,3.02102,3310.2,3309.6,0.93666202]
[1732467930904,3.02102,3310.2,3309.6,0.90645]
[1732467931117,3.02106,3310.1,3309.5,1.713426]
[1732467931613,3.02082,3310.4,3309.6,0.90643]
[1732467931786,3.02115,3310.0,3309.5,0.806966]
[1732467931992,3.02115,3310.0,3309.5,1.55767]
[1732467932192,3.02099,3310.2,3309.6,0.07817463]
[1732467932609,3.02079,3310.4,3309.8,0.90639]
[1732467932794,0.1,3311.4,3309.6,0.07817463]
[1732467932795,0.55,3310.7,3309.9,0.03020976]
[1732467932972,3.02088,3310.3,3309.9,0.07817464]
[1732467933675,3.02107,3310.1,3309.9,0.07817464]
[1732467934126,3.02114,3310.0,3309.9,0.07817464]
[1732467934282,6.0422,3310.1,3309.9,0.07817464]
[1732467934484,3.02114,3310.0,3309.9,0.07817464]
[1732467935177,0.687481,3310.0,3309.5,0.6512]
[1732467935380,3.57114,3310.1,3309.9,0.07728594]
[1732467935617,0.8326,3310.2,3308.9,0.6512]
[1732467935618,4.011514,3310.0,3308.9,0.6512]
[1732467935783,3.02167,3309.5,3308.9,1.55784]
[1732467936126,3.0219,3309.2,3308.9,0.6512]
[1732467936437,3.02203,3309.1,3308.9,0.6512]
[1732467936633,3.02185,3309.3,3308.6,1.55792]
[1732467937180,3.02188,3309.2,3308.6,1.55792]
[1732467937422,3.02188,3309.2,3308.7,0.455792]
[1732467937782,3.02188,3309.2,3308.6,1.55791]
[1732467938684,3.0222,3308.9,3308.6,0.6512]
[1732467939095,3.0222,3308.9,3308.4,0.90677]
[1732467939319,3.0222,3308.9,3308.4,1.062567]
[1732467939532,3.0222,3308.9,3308.4,0.155797]
[1732467940128,3.02217,3308.9,3308.4,0.155797]
[1732467940282,0.55,3309.4,3308.4,0.155797]
[1732467940283,3.02225,3308.8,3308.4,0.155797]
[1732467940484,3.02225,3308.8,3308.3,1.558]
[1732467940922,3.022,3309.1,3308.5,0.90674]
[1732467941245,3.022,3309.1,3308.5,0.90673]
[1732467941426,3.0222,3308.9,3308.3,1.55799]
[1732467942296,0.8326,3309.4,3308.3,0.6512]
[1732467942501,3.02243,3308.6,3308.3,0.6512]
[1732467943306,3.0223,3308.8,3308.3,0.6512]
[1732467943506,3.02241,3308.7,3308.3,0.6512]
[1732467943946,3.02241,3308.7,3308.4,0.04990778]
[1732467944555,3.02224,3308.8,3308.4,0.04990778]
[1732467945848,3.02206,3309.0,3308.4,0.04990778]
[1732467946013,3.02234,3308.7,3308.4,0.04990778]
[1732467946353,3.02251,3308.5,3308.4,0.04990778]
[1732467946847,3.02234,3308.7,3308.4,0.04990778]
[1732467947045,3.02242,3308.6,3308.4,0.04990778]
[1732467947849,3.02219,3308.9,3308.4,0.04990778]
[1732467948020,3.02226,3308.8,3308.4,0.04990778]
[1732467948236,3.02235,3308.7,3308.4,0.04990778]
[1732467949358,3.02243,3308.6,3308.4,0.04990778]
[1732467949962,3.02226,3308.8,3308.4,0.04990778]
[1732467950115,3.02209,3309.0,3308.4,0.21070156]
[1732467950316,3.02245,3308.6,3308.4,0.04990778]
[1732467950636,3.02249,3308.6,3308.4,0.04990778]
[1732467950842,3.02249,3308.6,3308.0,1.55808]
[1732467951147,3.02225,3308.8,3308.5,0.04674082]
[1732467951463,3.02225,3308.8,3308.2,0.90683]
[1732467951464,3.02234,3308.7,3308.1,0.95349548]
[1732467951661,3.02234,3308.7,3308.6,0.04675275]
[1732467951871,3.79598,3309.1,3308.4,0.90676]
[1732467952159,3.0222,3308.9,3308.6,0.0468058]
[1732467952461,3.02211,3309.0,3308.4,0.90678]
[1732467952659,3.02216,3308.9,3308.4,0.90678]
[1732467952858,3.02216,3308.9,3308.5,0.0467876]
[1732467953239,3.02201,3309.1,3308.5,1.6047176]
[1732467953441,3.02201,3309.1,3308.6,0.90672]
[1732467953635,6.04366,3309.3,3308.7,0.90669]
[1732467953836,3.02179,3309.3,3308.7,0.95348174]
[1732467954178,3.7957,3309.4,3308.8,0.90665]
[1732467954473,3.79545,3309.7,3308.8,0.04680994]
[1732467954638,3.02193,3309.2,3308.8,0.04680994]
[1732467954839,3.02193,3309.2,3308.6,0.90672]
[1732467955049,3.02193,3309.2,3308.9,0.04668565]
[1732467955361,3.02193,3309.2,3308.6,0.86346055]
[1732467955585,3.02193,3309.2,3309.0,0.04670384]
[1732467955787,3.02193,3309.2,3308.6,0.86346055]
[1732467956489,3.02193,3309.2,3308.7,0.04645174]
[1732467956856,3.02213,3309.0,3308.7,0.04645174]
[1732467957365,0.774,3309.1,3308.2,1.55803]
[1732467957366,3.02234,3308.7,3308.2,1.55803]
[1732467957754,3.02224,3308.8,3308.3,0.9068]
[1732467958614,3.02217,3308.9,3308.4,0.90677]
[1732467958904,3.02217,3308.9,3308.2,0.6512]
[1732467959076,3.02238,3308.7,3308.2,0.6512]
[1732467959456,6.0444,3308.9,3308.3,0.9068]
[1732467959950,3.02226,3308.8,3308.3,0.9068]
[1732467960898,3.02226,3308.8,3308.2,0.6512]
[1732467961082,3.02243,3308.6,3308.2,0.6512]
[1732467961455,3.02226,3308.8,3308.2,0.6512]
[1732467961653,3.02226,3308.8,3308.2,1.55803]
[1732467961892,3.02239,3308.7,3308.2,1.55803]
[1732467962092,3.0221,3309.0,3308.2,0.6512]
[1732467962266,3.0221,3309.0,3308.5,0.90675]
[1732467962650,3.02192,3309.2,3308.6,0.9067]
[1732467962888,3.02179,3309.3,3308.8,0.90665]
[1732467963194,3.02145,3309.7,3308.9,1.58804065]
[1732467963353,3.02127,3309.9,3309.1,0.90657]
[1732467963553,3.02134,3309.8,3309.1,0.90657]
[1732467963799,3.02134,3309.8,3309.2,0.90654]
[1732467963978,3.82619,3310.1,3309.5,0.90648]
[1732467964177,3.0209,3310.3,3309.6,1.55763]
[1732467964389,3.02105,3310.1,3309.6,1.55763]
[1732467964853,3.02107,3310.1,3309.6,1.55763]
[1732467965287,3.02127,3309.9,3309.2,0.90656]
[1732467965499,3.02127,3309.9,3309.3,0.6512]
[1732467965680,3.02125,3309.9,3309.3,0.6974279]
[1732467965854,3.02136,3309.8,3309.3,1.6039379]
[1732467966884,0.302125,3309.9,3309.3,1.6039379]
[1732467967094,0.55,3310.3,3309.6,0.90643]
[1732467967095,3.02089,3310.3,3309.6,0.90643]
[1732467967397,3.02098,3310.2,3309.7,0.04610223]
[1732467967560,0.382608,3310.2,3309.7,0.04610223]
[1732467967968,0.382608,3310.2,3309.6,0.90643]
[1732467968153,0.382608,3310.2,3309.8,0.04612041]
[1732467968358,3.02109,3310.1,3309.6,0.90644]
[1732467968557,0.8051,3310.4,3309.9,0.90637]
[1732467968781,3.02074,3310.5,3310.0,0.6512]
[1732467968964,3.322914,3310.4,3310.0,0.6512]
[1732467969169,3.322914,3310.4,3310.0,0.6972113]
[1732467969170,3.02094,3310.3,3310.0,0.6972113]
[1732467969368,3.02094,3310.3,3310.0,0.6512]
[1732467969594,0.302074,3310.4,3310.1,0.04591]
[1732467970010,3.322864,3310.4,3310.0,0.6512]
[1732467970295,0.302074,3310.4,3310.2,0.04592818]
[1732467970494,0.3322784,3310.3,3310.1,0.04591]
[1732467970799,0.3322784,3310.3,3310.0,0.6512]
[1732467971170,3.3531484,3310.3,3310.1,0.04591]
[1732467971694,3.3531484,3310.3,3310.0,0.6512]
[1732467971902,0.3322784,3310.3,3310.0,0.6512]
[1732467972066,0.3322784,3310.3,3310.1,0.04591]
[1732467973412,3.82606,3310.2,3310.1,0.04591]
[1732467973574,4.37606,3310.2,3310.1,0.04591]
[1732467973975,3.02132,3309.9,3309.4,0.6512]
[1732467974546,3.02151,3309.6,3309.5,0.045884]
[1732467974689,3.02142,3309.7,3309.5,0.045884]
[1732467974905,0.302132,3309.8,3308.3,0.9068]
[1732467975066,3.02207,3309.0,3308.8,0.6512]
[1732467975262,1.3551,3309.7,3308.5,0.6512]
[1732467975502,3.02235,3308.7,3308.2,0.6512]
[1732467975690,3.324585,3308.7,3308.2,0.6512]
[1732467975866,3.02252,3308.5,3308.1,1.0]
[1732467976208,3.324585,3308.7,3308.1,1.90684]
[1732467976516,3.02244,3308.6,3308.1,1.0]
[1732467976668,3.02244,3308.6,3308.1,1.90685]
[1732467977003,3.02279,3308.2,3308.1,1.0]
[1732467977467,3.57279,3308.2,3308.1,1.0]
[1732467980477,6.57279,3308.2,3308.1,1.0]
[1732467981782,7.37789,3308.2,3308.1,1.0]
[1732467982132,8.65060125,3308.2,3308.1,1.0]
[1732467982414,7.37853,3307.5,3307.4,0.1478703]
[1732467985516,3.02453,3306.3,3305.7,0.6512]
[1732467985811,3.02453,3306.3,3305.7,1.77501235]
[1732467986015,3.02462,3306.2,3305.8,0.05509253]
[1732467986429,3.02462,3306.2,3305.7,0.6512]
[1732467986627,3.02462,3306.2,3305.9,0.05511076]
[1732467986628,3.0248,3306.0,3305.9,0.05511076]
[1732467986790,3.02489,3305.9,3305.8,0.05509253]
[1732467986994,0.7892,3306.0,3305.2,0.6512]
[1732467987194,3.0249,3305.9,3305.2,1.714727]
[1732467987404,3.0249,3305.9,3305.3,0.05500136]
[1732467987595,0.7892,3306.0,3305.4,0.90759]
[1732467987809,0.7892,3306.0,3305.3,0.05500136]
[1732467987810,1.3392,3306.3,3305.5,0.90757]
[1732467988119,0.55,3305.7,3305.5,0.05503783]
[1732467988328,4.36436,3305.6,3305.5,0.05503783]
[1732467988528,3.0259,3304.8,3304.5,0.6512]
[1732467988682,3.0259,3304.8,3304.1,1.7085116]
[1732467988878,3.57603,3304.7,3304.2,0.05543838]
[1732467989091,3.02615,3304.6,3304.2,0.05543838]
[1732467989441,3.57645,3304.2,3304.1,0.1493716]
[1732467990286,4.36565,3304.2,3304.1,0.1493716]
[1732467991027,1.3392,3304.2,3304.1,0.1493716]
[1732467991236,4.36565,3304.2,3304.1,0.1493716]
[1732467991381,5.104842,3304.2,3304.1,0.1493716]
[1732467991581,2.078392,3304.2,3304.1,0.1493716]
[1732467991817,2.078392,3304.2,3303.3,0.90817]
[1732467992021,3.0268,3303.9,3303.1,0.59588763]
[1732467992189,3.02694,3303.7,3303.1,0.59588763]
[1732467992396,0.852694,3303.6,3302.9,0.90828]
[1732467992603,0.852694,3303.6,3302.6,0.90835]
[1732467992604,3.879694,3303.6,3302.6,0.90835]
[1732467992812,3.02716,3303.5,3302.6,0.90835]
[1732467993023,0.55,3303.4,3302.4,0.90842]
[1732467993342,0.55,3303.4,3302.3,0.6512]
[1732467993556,0.55,3303.4,3302.5,0.90838]
[1732467993760,0.55,3303.7,3302.8,0.90831]
[1732467994054,0.55,3303.5,3303.2,0.90818]
[1732467994207,0.55,3303.5,3303.0,0.90826]
[1732467994410,3.57683,3303.8,3303.0,0.90826]
[1732467994609,3.57683,3303.8,3302.0,3.90853]
[1732467994610,0.55,3303.9,3302.9,1.55949]
[1732467994834,0.55,3303.9,3303.2,0.90818]
[1732467995114,0.55,3303.9,3303.3,0.05368788]
[1732467995405,0.55,3304.1,3303.3,0.05368788]
[1732467995406,3.57658,3304.1,3303.3,0.90817]
[1732467995610,3.57676,3303.9,3302.9,0.90828]
[1732467995840,0.55,3303.7,3302.6,0.6512]
[1732467996053,0.55,3303.9,3302.9,0.90828]
[1732467996208,0.55,3303.9,3303.1,0.90821]
[1732467996408,1.251056,3303.9,3303.3,0.90818]
[1732467996646,1.251056,3303.9,3303.5,0.9081]
[1732467996952,1.251056,3303.9,3303.6,0.05574839]
[1732467996953,0.55,3303.9,3303.6,0.05574839]
[1732467997247,0.907664,3303.9,3303.3,0.90817]
[1732467997644,0.907664,3303.9,3303.5,0.90812]
[1732467997810,0.55,3304.1,3303.6,0.05574839]
[1732467998006,3.57656,3304.1,3303.3,0.90817]
[1732467998251,0.55,3303.9,3303.5,0.90812]
[1732467998416,0.55,3304.1,3302.6,0.6512]
[1732467998621,0.55,3303.9,3303.6,0.90808]
[1732467998849,0.7892,3304.2,3302.7,0.96426117]
[1732467999019,0.7892,3304.2,3303.6,0.90807]
[1732467999020,0.55,3304.1,3303.6,0.90807]
[1732467999225,0.55,3304.1,3303.0,0.90825]
[1732467999226,0.55,3304.1,3303.1,0.90823]
[1732467999438,0.55,3304.1,3303.4,0.90813]
[1732467999756,0.55,3304.1,3303.7,0.90807]
[1732468000247,3.02672,3303.9,3303.8,0.00200333]
[1732468000445,0.55,3303.8,3303.2,0.9082]
[1732468000660,0.55,3303.8,3303.3,0.90815]
[1732468000868,0.55,3303.8,3303.5,0.90812]
[1732468001171,0.55,3304.1,3303.6,0.05186092]
[1732468001330,3.0,3304.0,3303.6,0.05186092]
[1732468001646,3.0,3304.0,3303.3,0.90818]
[1732468001647,0.55,3303.9,3303.3,0.90818]
[1732468001856,0.55,3303.7,3303.3,0.90818]
[1732468002157,0.55,3303.7,3303.1,0.90823]
[1732468002557,0.55,3303.7,3303.2,0.05186076]
[1732468002759,0.55,3303.5,3303.2,0.05186076]
[1732468002961,0.55,3303.5,3303.1,0.90822]
[1732468003147,0.55,3303.5,3303.3,0.90817]
[1732468003346,0.55,3303.5,3303.2,0.9082]
[1732468003751,0.55,3303.5,3303.3,0.05397362]
[1732468004269,0.55,3303.5,3303.1,0.90822]
[1732468004428,0.55,3303.5,3303.2,0.9603745]
[1732468004630,0.55,3303.5,3303.3,0.90815]
[1732468004830,0.55,3303.5,3303.4,0.90815]
[1732468005025,0.7598,3303.6,3303.4,0.90815]
[1732468005264,0.55,3303.7,3303.5,0.96035175]
[1732468005453,0.55,3303.8,3303.6,0.9081]
[1732468005768,0.55,3303.8,3303.5,0.05223175]
[1732468005769,0.55,3303.8,3303.5,0.96035175]
[1732468006282,0.7899,3304.5,3304.0,0.90797]
[1732468006441,0.7899,3304.5,3304.2,0.90792]
[1732468006848,0.7899,3304.5,3304.2,0.90793]
[1732468007048,0.7899,3304.8,3304.2,0.90793]
[1732468007251,4.118444,3304.8,3304.2,0.90793]
[1732468007549,3.02599,3304.7,3304.3,0.05216929]
[1732468007773,0.7118474,3304.6,3304.3,0.05216929]
[1732468008094,0.7118474,3304.6,3304.0,0.90796]
[1732468008095,0.7118474,3304.6,3304.2,0.9079]
[1732468008390,0.55,3304.5,3304.1,0.90796]
[1732468008779,0.55,3304.5,3304.2,0.05182584]
[1732468009151,0.7899,3304.8,3304.6,0.9078]
[1732468009388,3.81544,3305.2,3304.6,0.9078]
[1732468009545,0.302554,3305.1,3304.7,0.95961584]
[1732468009747,0.60253411,3306.1,3304.7,0.05182584]
[1732468010000,3.81512,3305.6,3304.8,0.90774]
[1732468010180,3.406782,3305.5,3304.9,0.90772]
[1732468010476,3.406832,3305.5,3304.9,0.9594678]
[1732468010682,0.381512,3305.5,3304.9,0.0517478]
[1732468010842,3.02536,3305.4,3304.8,0.90776]
[1732468011046,3.02559,3305.2,3304.9,0.0511963]
[1732468011246,3.02542,3305.4,3304.6,0.90781]
[1732468011475,0.302559,3305.2,3304.9,0.90774]
[1732468013296,3.02474,3306.1,3305.4,0.90758]
[1732468013461,3.02474,3306.1,3305.5,0.0495031]
[1732468013664,0.7899,3306.2,3305.6,0.90754]
[1732468013862,0.7899,3306.2,3305.7,0.04953956]
[1732468013863,3.81452,3306.2,3305.7,0.04953956]
[1732468014070,0.381452,3306.1,3305.7,0.95705956]
[1732468014282,0.7899,3306.2,3305.7,0.04953956]
[1732468014482,0.7899,3306.2,3305.8,0.00163851]
[1732468014794,0.7899,3306.2,3305.8,0.90749]
[1732468014994,0.7899,3306.2,3305.9,0.05119631]
[1732468015350,0.681449,3306.1,3305.9,0.05119631]
[1732468015698,3.5745,3306.4,3305.8,0.90747]
[1732468015993,0.55,3306.2,3305.9,0.04957603]
[1732468016796,0.55,3306.2,3305.7,0.90751]
[1732468017093,3.0251,3305.7,3305.3,0.00172967]
[1732468017386,4.3399,3306.1,3305.3,0.00172967]
[1732468017387,0.7858,3305.4,3305.3,0.00172967]
[1732468017551,4.36115,3305.4,3305.3,0.00172967]
[1732468017747,3.02485,3306.0,3305.3,0.00172967]
[1732468017748,3.02509,3305.7,3305.3,0.00172967]
[1732468017952,0.55,3305.6,3305.3,0.00172967]
[1732468018204,0.357509,3305.5,3305.3,0.00172967]
[1732468018788,3.57535,3305.4,3305.3,0.00172967]
[1732468018971,0.55,3305.4,3305.3,0.00172967]
[1732468019166,0.43644,3306.3,3305.3,0.00172967]
[1732468019371,3.02496,3305.9,3305.3,0.00172967]
[1732468019566,3.0,3306.3,3305.4,0.04906767]
[1732468019796,3.0249,3305.9,3305.3,0.00172967]
[1732468020307,0.37858,3306.2,3305.3,0.00172967]
[1732468020308,3.02517,3305.6,3305.3,0.00172967]
[1732468020499,3.02517,3305.6,3305.4,0.04862245]
[1732468020701,3.02517,3305.6,3305.3,0.00172967]
[1732468021014,0.683596,3305.6,3305.4,0.04859019]
[1732468021371,0.37858,3306.2,3305.4,0.6512]
[1732468021579,0.7858,3306.3,3305.4,0.6512]
[1732468021879,3.0,3306.9,3306.0,0.90743]
[1732468021880,3.0243,3306.6,3306.0,0.90743]
[1732468022275,3.02435,3306.5,3306.1,0.04860742]
[1732468022569,3.32678,3306.5,3305.9,0.90745]
[1732468022774,3.32678,3306.5,3306.2,0.04852168]
[1732468022974,0.635108,3306.4,3306.0,0.90743]
[1732468023369,0.635108,3306.4,3306.1,0.04849207]
[1732468023570,0.635108,3306.4,3306.2,0.90738]
[1732468023774,3.80983,3306.9,3306.3,0.90735]
[1732468024199,3.02413,3306.8,3306.4,0.04854676]
[1732468024405,3.02434,3306.5,3306.4,0.04854676]
[1732468024675,3.02464,3306.2,3305.7,0.6512]
[1732468024831,3.02464,3306.2,3305.3,3.24188144]
[1732468024832,0.55,3305.8,3305.3,0.00172967]
[1732468024985,3.02513,3305.7,3305.3,0.00172967]
[1732468025303,3.57535,3305.4,3305.3,0.00172967]
[1732468025507,4.23541,3305.4,3305.3,0.00172967]
[1732468026725,0.8156,3305.5,3305.3,0.00172967]
[1732468027018,3.57535,3305.4,3305.3,0.00172967]
[1732468028212,4.39095,3305.4,3305.3,0.00172967]
[1732468028514,7.39095,3305.4,3305.3,0.00172967]
[1732468029739,12.92475,3305.4,3305.3,0.00172967]
[1732468029960,14.822275,3305.4,3305.3,0.00172967]
[1732468030615,14.822275,3305.4,3305.3,9.67e-06]
[1732468030815,0.8156,3304.9,3303.5,0.6512]
[1732468031129,0.8156,3304.9,3302.9,0.6512]
[1732468031130,3.02717,3303.5,3302.9,0.6512]
[1732468031333,3.02729,3303.3,3302.9,0.6512]
[1732468031952,3.02717,3303.5,3302.9,0.6512]
[1732468032123,3.8422,3304.1,3302.9,0.6512]
[1732468032321,3.02715,3303.5,3302.9,0.6512]
[1732468032524,3.0269,3303.7,3302.9,0.6512]
[1732468032855,3.02728,3303.3,3302.9,0.6512]
[1732468033232,3.02737,3303.2,3302.9,0.6512]
[1732468033434,3.02745,3303.2,3302.9,0.6512]
[1732468033760,3.0278,3302.8,3301.9,0.6512]
[1732468034133,0.55,3303.0,3301.9,1.55974]
[1732468034331,0.8156,3303.4,3301.9,1.55974]
[1732468034332,3.02802,3302.5,3302.0,0.0021154]
[1732468034531,3.02811,3302.4,3302.0,0.0021154]
[1732468034755,5.5338,3302.9,3302.0,0.0021154]
[1732468034756,3.02801,3302.5,3302.0,0.0021154]
[1732468034959,3.02786,3302.7,3302.1,0.90851]
[1732468035157,3.02804,3302.5,3302.0,0.0021154]
[1732468035483,3.02819,3302.3,3302.1,0.00209712]
[1732468035691,0.55,3302.5,3301.9,0.6512]
[1732468035981,0.55,3302.7,3302.0,0.0021154]
[1732468036180,3.02816,3302.4,3302.0,0.0021154]
[1732468036360,3.02791,3302.6,3302.0,0.0021154]
[1732468036554,3.02791,3302.6,3301.9,1.55976]
[1732468036555,5.5338,3302.3,3301.9,0.6512]
[1732468036868,5.5338,3302.3,3302.0,0.04903569]
[1732468037275,6.08718,3302.3,3302.1,0.04693856]
[1732468037483,6.08718,3302.3,3301.9,1.05879569]
[1732468037855,5.5338,3302.3,3302.0,0.90852]
[1732468038083,5.5338,3302.3,3302.2,0.90848]
[1732468038669,5.5338,3302.3,3302.1,0.04740116]
[1732468039062,5.5338,3302.3,3302.2,0.90848]
[1732468039397,5.5338,3302.3,3302.2,1.09492012]
[1732468039991,5.5338,3302.3,3302.2,0.90848]
[1732468040486,5.5338,3302.3,3302.2,1.05868]
[1732468041799,5.5338,3302.3,3302.2,1.06030212]
[1732468045093,5.5338,3302.3,3302.2,1.10607581]
[1732468046193,8.56199,3302.3,3302.2,0.04739581]
[1732468046405,9.11537,3302.3,3302.2,0.04739581]
[1732468046709,3.02872,3301.8,3301.2,0.1502]
[1732468047703,7.47008,3302.3,3301.2,0.1502]
[1732468047869,3.02866,3301.8,3301.2,0.1502]
[1732468048073,5.5338,3301.7,3300.9,1.05903]
[1732468048397,8.5626,3301.7,3301.3,0.00182028]
[1732468048569,3.02884,3301.6,3300.9,0.1502]
[1732468048777,5.5338,3301.7,3301.0,0.90879]
[1732468049007,5.5338,3301.7,3301.1,0.90877]
[1732468049306,8.56256,3301.7,3301.2,0.00183856]
[1732468049516,8.56256,3301.7,3301.0,0.90881]
[1732468049677,8.56256,3301.7,3301.3,0.00182028]
[1732468050014,5.5338,3301.7,3301.2,0.90874]
[1732468050512,5.5338,3301.7,3301.3,0.04114736]
[1732468052013,5.5338,3301.7,3301.2,0.90874]
[1732468052376,5.5338,3301.7,3301.3,0.0418647]
[1732468052577,5.5338,3301.7,3301.2,0.90874]
[1732468052776,5.5338,3301.7,3301.4,0.04186469]
[1732468053277,5.5338,3301.7,3300.9,0.1502]
[1732468053587,5.5338,3301.7,3301.6,0.1502]
[1732468053975,5.5338,3301.7,3301.6,0.19199189]
[1732468054789,5.5338,3301.7,3301.6,0.1502]
[1732468055415,3.02895,3301.5,3300.9,1.05902]
[1732468055621,0.55338,3301.6,3300.9,0.1502]
[1732468055822,3.02892,3301.5,3301.0,0.04093479]
[1732468055993,3.02892,3301.5,3300.9,1.05903]
[1732468056193,3.58228,3301.6,3300.9,1.05903]
[1732468056409,3.02916,3301.3,3301.0,0.03954172]
[1732468056614,1.297775,3301.5,3300.8,0.1543716]
[1732468056787,1.297775,3301.5,3301.0,0.9088]
[1732468056990,3.02897,3301.5,3300.9,0.94836173]
[1732468057191,3.02909,3301.4,3300.9,0.03954173]
[1732468057520,3.02883,3301.6,3300.9,0.90883]
[1732468057521,3.02901,3301.5,3300.9,0.90883]
[1732468057832,3.02901,3301.5,3300.8,0.1543716]
[1732468058013,5.5338,3301.4,3300.8,0.1543716]
[1732468058188,3.02916,3301.3,3300.8,0.1543716]
[1732468058827,3.82095983,3301.3,3300.8,0.1543716]
[1732468059403,0.79179983,3301.3,3300.8,0.1543716]
[1732468059613,5.5338,3301.4,3300.8,0.1543716]
[1732468059918,8.56287,3301.4,3300.8,0.1543716]
[1732468060132,3.02916,3301.3,3300.8,0.1543716]
[1732468060487,3.02931,3301.1,3300.8,0.1543716]
[1732468060929,3.02947,3300.9,3300.8,0.1543716]
[1732468061131,3.635348,3300.9,3300.8,0.1543716]
[1732468062697,9.169148,3300.9,3300.8,0.1543716]
[1732468063433,9.930848,3300.9,3300.8,0.1543716]
[1732468063934,10.53410046,3300.9,3300.8,0.1543716]
[1732468064429,12.930848,3300.9,3300.8,0.1543716]
[1732468064895,13.480848,3300.9,3300.8,0.1543716]
[1732468065345,3.03076,3299.5,3298.9,0.90939]
[1732468065544,3.03052,3299.8,3299.1,0.90931]
[1732468065837,3.0303,3300.0,3299.1,0.90933]
[1732468066044,3.03055,3299.8,3299.1,0.90932]
[1732468066247,5.5338,3299.9,3299.1,0.90932]
[1732468066544,5.5338,3299.9,3298.8,0.3046]
[1732468066545,5.5338,3299.9,3299.5,1.21382]
[1732468066713,5.5338,3299.9,3299.5,0.3046]
[1732468067103,5.5338,3299.9,3299.5,1.21382]
[1732468067348,5.5338,3299.9,3299.5,0.3046]
[1732468067733,5.5338,3299.9,3299.5,1.2138]
[1732468067939,5.5338,3299.9,3299.5,0.3046]
[1732468068419,5.5338,3299.9,3299.5,1.2138]
[1732468068635,5.5338,3299.9,3299.5,0.3046]
[1732468068980,3.03066,3299.7,3298.7,0.90944]
[1732468069244,3.03165,3298.6,3298.0,0.3046]
[1732468069412,5.5338,3299.6,3298.0,0.3046]
[1732468069413,3.03149,3298.7,3298.0,0.3046]
[1732468069610,3.03149,3298.7,3298.1,0.90961]
[1732468069807,3.79309,3298.9,3298.0,0.90964]
[1732468070124,3.03102,3299.3,3297.4,1.0591516]
[1732468070125,0.7617,3298.5,3297.4,0.1493716]
[1732468070429,0.7617,3298.5,3298.1,0.90961]
[1732468070636,3.03151,3298.7,3298.0,0.90961]
[1732468070950,8.56546,3298.6,3297.9,0.90965]
[1732468071102,5.5338,3298.6,3298.0,0.94483892]
[1732468071307,5.5338,3298.6,3298.5,0.9095]
[1732468071503,5.5338,3298.6,3298.5,0.94482052]
[1732468071750,5.5338,3298.6,3298.5,0.03532052]
[1732468072626,5.5338,3298.6,3298.2,0.90958]
[1732468072810,5.5338,3298.6,3298.5,0.03576732]
[1732468073012,8.56546,3298.6,3297.8,0.3046]
[1732468073229,3.03182,3298.4,3297.5,0.3046]
[1732468073520,3.03182,3298.4,3297.0,0.9099]
[1732468073521,3.03223,3297.9,3297.0,0.3046]
[1732468073720,0.7617,3297.8,3296.9,0.90993]
[1732468074023,3.0326,3297.5,3296.4,0.3046]
[1732468074454,5.5338,3297.7,3296.8,0.90994]
[1732468074605,5.5338,3297.5,3297.2,1.21443]
[1732468074812,5.5338,3297.5,3297.2,0.3046]
[1732468075778,5.5338,3297.5,3297.4,1.0591716]
[1732468076076,5.5338,3297.5,3297.4,0.1493716]
[1732468076926,5.5338,3297.5,3297.4,1.0591716]
[1732468077134,5.5338,3297.5,3297.4,1.06173604]
[1732468077468,5.5338,3297.5,3297.4,0.15193604]
[1732468077934,5.5338,3297.5,3297.4,1.06173604]
[1732468078133,5.5338,3297.5,3297.4,1.59395164]
[1732468078527,3.79317,3298.8,3297.7,0.90969]
[1732468078728,0.7617,3298.8,3298.0,0.90961]
[1732468078929,0.7617,3299.1,3298.1,0.00244827]
[1732468079225,3.03122,3299.0,3298.1,0.9096]
[1732468079451,3.03122,3299.0,3298.2,0.00242995]
[1732468079647,3.03131,3298.9,3298.2,0.00242995]
[1732468079850,0.682423,3298.9,3298.0,0.90963]
[1732468080097,3.713793,3298.9,3297.9,1.21426]
[1732468080269,0.6745013,3298.8,3298.0,0.00246659]
[1732468080469,0.7617,3299.1,3298.0,0.00246659]
[1732468080787,0.7617,3299.1,3298.2,0.90956]
[1732468080987,3.03071,3299.6,3298.0,0.00246659]
[1732468081303,3.03071,3299.6,3298.6,0.3046]
[1732468081304,3.79258,3299.4,3298.6,0.3046]
[1732468081469,0.7617,3299.4,3298.7,0.00233836]
[1732468081674,3.79263,3299.4,3298.7,0.00233836]
[1732468082098,3.0314,3298.8,3298.7,0.00233836]
[1732468082304,3.7931,3298.8,3297.9,0.3046]
[1732468082616,0.30314,3298.7,3297.5,0.3046]
[1732468082817,3.03192,3298.3,3297.5,0.3046]
[1732468082985,3.03168,3298.5,3297.7,0.90972]
[1732468083320,3.03166,3298.6,3297.6,0.94590928]
[1732468083482,0.30314,3298.7,3297.6,0.94590928]
[1732468083814,0.30314,3298.7,3297.9,0.90966]
[1732468083815,3.03149,3298.7,3297.9,0.90966]
[1732468084018,3.03149,3298.7,3297.8,0.90969]